Cogmind - Beta 17 *** ADVENTURER MODE // 2026.07.05 @ 15:08:09 Player: Koritus Result: Destroyed by as-83964 with Assembled Blade Performance ------------- Evolutions (0) 0 Regions Visited (4) 800 Robots Destroyed (13) 65 Value Destroyed (305) 305 Prototype IDs (24) 480 Alien Tech Used (0) 0 Bonus (300) 300 TOTAL SCORE: 1950 Bonus ------- Aligned with FarCom 300 Cogmind --------- Core Integrity 0/250 Matter 294/300 Energy 100/100 System Corruption 1% Temperature Cool (0) Movement Walking (120) Location -9/Mines Parts ------- > --- POWER (1) -------- (None) > --- PROPULSION (2) --- Aluminum Leg > --- UTILITY (2) ------ Medium Storage Unit > --- WEAPON (2) ------- (None) > --- INVENTORY (10) --- Flying Fortress v7 Medium Storage Unit Large Storage Unit Peak State ------------ > --- POWER ------------ Ion Engine > --- PROPULSION ------- Aluminum Leg Aluminum Leg > --- UTILITY ---------- Medium Storage Unit Experimental Sensor Array > --- WEAPON ----------- Light Assault Rifle > --- INVENTORY -------- Aluminum Leg Flying Fortress v7 Medium Storage Unit Large Storage Unit Rocket Launcher [Rating: 17] Favorites ----------- Power Light Nuclear Core Engine Ion Engine Power Core Light Nuclear Core Propulsion Light Treads Treads Light Treads Leg Aluminum Leg Utility Medium Storage Unit Device Seismic Detector Storage Medium Storage Unit Processor Signal Interpreter Weapon Light Assault Rifle Ballistic Gun Light Assault Rifle Launcher Rocket Launcher Build | -11 -10 -10 -10 -9 ------- Run | Yrd Mat Min Exi Min Slots Evolved . | . . . . . Power . | . . . . . Propulsion . | . . . . . Utility . | . . . . . Weapon . | . . . . . Parts Attached 22 | 9 5 3 1 4 Power 6 | 1 2 1 1 1 Engine 5 | 1 2 . 1 1 Core 1 | . . 1 . . Reactor . | . . . . . Propulsion 7 | 4 . 2 . 1 Treads 2 | 2 . . . . Leg 5 | 2 . 2 . 1 Wheel . | . . . . . Hover . | . . . . . Flight . | . . . . . Utility 6 | 2 3 . . 1 Device 2 | 1 . . . 1 Storage 3 | 1 2 . . . Processor 1 | . 1 . . . Hackware . | . . . . . Protection . | . . . . . Artifact . | . . . . . Weapon 3 | 2 . . . 1 Energy Gun . | . . . . . Energy Cannon . | . . . . . Ballistic Gun 2 | 2 . . . . Ballistic Cannon . | . . . . . Launcher 1 | . . . . 1 Special Weapon . | . . . . . Impact Weapon . | . . . . . Slashing Weapon . | . . . . . Piercing Weapon . | . . . . . Special Melee Weapon . | . . . . . Unidentified Prototypes 1 | . . . . 1 Parts Lost 7 | . . . . 7 Power 2 | . . . . 2 Propulsion 1 | . . . . 1 Utility 1 | . . . . 1 Weapon 3 | . . . . 3 Highest Loss Streak 4 | . . . . 4 To Critical Strikes 1 | . . . . 1 Average Backups 7 | 1 6 9 8 6 Power 1 | . . 2 1 . Propulsion 2 | 1 2 3 2 1 Utility 2 | . 2 3 3 2 Weapon . | . . 1 1 . Tool/Special . | . . . . . Unused Backups 5 | . 1 . . 4 Power 1 | . 1 . . . Propulsion 1 | . . . . 1 Utility 2 | . . . . 2 Weapon 1 | . . . . 1 Tool/Special . | . . . . . Average Slot Usage (%) 97 | . 99 99 100 87 Engine 8 | . 14 1 4 13 Core 5 | . . 12 9 . Treads 13 | . 28 14 . . Leg 14 | . . 13 28 26 Device 1 | . 6 . . . Storage 14 | . 14 14 14 14 Processor 11 | . 7 14 14 9 Ballistic Gun 26 | . 28 28 28 21 Peak Build Rating 17 | 7 7 10 11 17 Average Rating 8 | 5 6 9 10 10 On Entrance 7 | . 7 7 10 11 Avg Prop Armor Cover (%) . | . . . . . Naked Turns . | . . . . . Heaviest Build 19 | 11 17 17 17 19 Greatest Support 40 | 40 40 40 20 20 Greatest Overweight (x) 5 | . . 5 . 1 Average Overweight (x) . | . . . . . Largest Inventory Capacity 10 | 8 10 10 10 10 Average Capacity 9 | 6 9 10 10 10 Most Carried 10 | 2 9 10 10 10 Average Carried 8 | 1 6 9 9 9 Final Capacity 10 | 8 10 10 10 10 Final Carried 10 | 2 9 10 10 6 Class Distribution -------------------- 100% | Mutant Dominant Class ---------------- Mutant | -10/Materials Mutant | -10/Mines Mutant | -10/Exiles Mutant | -9/Mines Resources | -11 -10 -10 -10 -9 ----------- Run | Yrd Mat Min Exi Min Matter Collected 494 | 165 205 83 . 41 Remotely . | . . . . . Salvage Created 463 | 22 257 174 . 10 Parts 27 | 4 12 11 . . Haulers Intercepted . | . . . . . Recyclers Shooed . | . . . . . Parts Field Recycled . | . . . . . Retrieved Matter . | . . . . . Parts Self-Destructed . | . . . . . Prevented . | . . . . . Parts Restored . | . . . . . Kills | -11 -10 -10 -10 -9 ------- Run | Yrd Mat Min Exi Min Combat Hostiles Destroyed 11 | . 5 4 . 2 Guns 10 | . 5 4 . 1 AOE 1 | . . . . 1 Classes Destroyed 6 | 1 4 . . 1 Tunneler 1 | 1 . . . . Recycler 1 | . 1 . . . Watcher 2 | . 2 . . . Swarmer 3 | . 3 . . . Grunt 6 | . 2 4 . . Assembled 2 | . . . . 2 Best Kill Streak 6 | 1 6 2 . 1 Combat Bots Only 3 | . 3 2 . 1 Max Kills in Single Turn 2 | 1 2 1 . 1 Gunslinging 1 | . 1 . . . Exploded 1 | . . . . 1 Melee . | . . . . . Uniques/NPCs Destroyed . | . . . . . Combat | -11 -10 -10 -10 -9 -------- Run | Yrd Mat Min Exi Min Hostile Shots Fired 130 | . 32 22 . 76 Missed 42 | . 9 4 . 29 Hits 88 | . 23 18 . 47 Melee 21 | . . . . 21 Projectile 67 | . 23 18 . 26 Critical Strikes 2 | . . . . 2 Part Disruptions 1 | . . . . 1 Damage Taken 1091 | . 162 197 . 732 Core 254 | . 13 22 . 219 Absorbed by Shields . | . . . . . Ignored by Resistances 312 | . 52 57 . 203 Regen/Repaired (Parts) 8 | . 8 . . . Core Remaining (%) 100 | 100 . . . . Volleys Fired 60 | 2 24 18 . 16 Largest 2 | 2 2 2 . 2 Hottest 40 | 40 40 40 . 40 Shots Fired 110 | 4 48 36 . 22 Gun 109 | 4 48 36 . 21 Cannon . | . . . . . Launcher 1 | . . . . 1 Special . | . . . . . Kinetic 109 | 4 48 36 . 21 Thermal . | . . . . . Explosive 1 | . . . . 1 Electromagnetic . | . . . . . Robot Hit Streak 22 | 2 19 22 . 11 Robot Miss Streak 4 | 1 1 1 . 4 Penetration Max . | . . . . . Secondary Targets 3 | . 1 1 . 1 Max Gunslinging Chain 1 | . 1 1 . 1 Shots Hit Robots 90 | 2 40 33 . 15 Core Hits 48 | 2 17 13 . 16 Critical Kills . | . . . . . Critical Parts Destroyed 3 | . 1 1 . 1 Critical Strikes 3 | . 1 1 . 1 Destroy 3 | . 1 1 . 1 Melee Attacks . | . . . . . Impact . | . . . . . Slashing . | . . . . . Piercing . | . . . . . Sneak Attacks . | . . . . . Combat Hostiles . | . . . . . Follow-up Attacks . | . . . . . Damage Inflicted 853 | 13 322 284 . 234 Guns 728 | 13 322 280 . 113 Cannons . | . . . . . Explosions 76 | . . . . 76 Melee . | . . . . . Ramming 49 | . . 4 . 45 Kinetic 728 | 13 322 280 . 113 Thermal . | . . . . . Explosive 76 | . . . . 76 Electromagnetic . | . . . . . Impact . | . . . . . Slashing . | . . . . . Piercing . | . . . . . Highest Corruption 1 | . . . . 1 Average Corruption 1 | . . . . 1 Corruption Purged . | . . . . . Corruption Blocked . | . . . . . Effects 2 | . . . . 2 Matter Fused 1 | . . . . 1 Weapon Failures 1 | . . . . 1 Overload Shots . | . . . . . Overflow Damage . | . . . . . Projectiles . | . . . . . Explosions . | . . . . . Melee . | . . . . . Knockbacks . | . . . . . Impact . | . . . . . Kinetic . | . . . . . Secondary . | . . . . . Self-Inflicted Damage . | . . . . . Shots . | . . . . . Rammed 1 | . . 1 . . Targets Rammed 29 | . . 1 . 28 Kicked 28 | . . . . 28 Crushed . | . . . . . Highest Temperature 43 | . 12 43 . 16 Average Temperature 11 | . 7 12 . 14 Received Heat Transfer 215 | . 42 153 . 20 Siege Activations . | . . . . . Martial Activations . | . . . . . Shielding Activations . | . . . . . Robots Disrupted . | . . . . . Combat Hostiles . | . . . . . Robots Corrupted . | . . . . . Combat Hostiles . | . . . . . Parts Fried . | . . . . . Impact Corruptions . | . . . . . Robots Melted . | . . . . . Combat Hostiles . | . . . . . Parts Melted . | . . . . . Heat Transferred . | . . . . . Parts Sabotaged . | . . . . . Parts Stolen . | . . . . . Parts Stripped . | . . . . . Power Chain Reactions . | . . . . . Alert | -11 -10 -10 -10 -9 ------- Run | Yrd Mat Min Exi Min Maximum Alert Level . | . . . . . Low Security (%) 100 | 100 100 100 . 100 Level 1 . | . . . . . Level 2 . | . . . . . Level 3 . | . . . . . Level 4 . | . . . . . Level 5 . | . . . . . High Security . | . . . . . Max Security . | . . . . . Peak Influence 74 | 5 74 50 . 10 Initial . | . . . . . Average 8 | . 14 8 . . Influence Increases 256 | 5 141 100 . 10 Destroy 0b10 Robot/C 180 | . 100 80 . . Destroy 0b10 Robot/NC 20 | 5 15 . . . Destroy Leader 34 | . 14 20 . . Successful Hack 12 | . 12 . . . Destroy Structure 10 | . . . . 10 Influence Decreases 256 | 5 141 100 . 10 Time Decay 256 | 5 141 100 . 10 Squads Dispatched . | . . . . . Investigation . | . . . . . Extermination . | . . . . . Reinforcement . | . . . . . Assault . | . . . . . Garrison . | . . . . . Intercept . | . . . . . Searches Triggered . | . . . . . Construction Impeded . | . . . . . Haulers Reinforced . | . . . . . Active Scanning Responses . | . . . . . Cargo Convoy Interrupts . | . . . . . Stealth | -11 -10 -10 -10 -9 --------- Run | Yrd Mat Min Exi Min Distress Signals . | . . . . . Communications Jammed . | . . . . . Distress Signals . | . . . . . Times Spotted 24 | . 7 4 . 13 Peak Tracking Total 5 | . 5 2 . 5 Tactical Retreats 2 | . . . . 2 Traps | -11 -10 -10 -10 -9 ------- Run | Yrd Mat Min Exi Min Traps Triggered . | . . . . . Indirectly . | . . . . . Trap Hack Attempts . | . . . . . Triggered . | . . . . . Disarmed . | . . . . . Reprogrammed . | . . . . . Reused . | . . . . . Traps Extracted . | . . . . . Installed . | . . . . . Triggered . | . . . . . Machines | -11 -10 -10 -10 -9 ---------- Run | Yrd Mat Min Exi Min Machines Disabled . | . . . . . Max in Single Turn . | . . . . . Machines Repaired . | . . . . . Machines Dismantled . | . . . . . Machines Sabotaged . | . . . . . Overloaded Fab Kills . | . . . . . Hacking | -11 -10 -10 -10 -9 --------- Run | Yrd Mat Min Exi Min Machines Accessed 10 | . 6 . 4 . Terminals 5 | . 5 . . . Fabricators . | . . . . . Repair Stations 1 | . 1 . . . Recycling Units . | . . . . . Scanalyzers . | . . . . . Garrison Access . | . . . . . Total Hacks 31 | . 13 . 18 . Successful 25 | . 7 . 18 . Failed 6 | . 6 . . . Catastrophic . | . . . . . Database Lockouts . | . . . . . Manual 2 | . . . 2 . Terminals 11 | . 11 . . . Fabricators . | . . . . . Repair Stations 2 | . 2 . . . Recycling Units . | . . . . . Scanalyzers . | . . . . . Garrison Access . | . . . . . Terminal Hacks 23 | . 5 . 18 . Record 17 | . . . 17 . Robot Analysis 1 | . 1 . . . Alert Level 1 | . 1 . . . Hauler Manifests 1 | . 1 . . . Registered Components 1 | . 1 . . . Zone Layout 1 | . 1 . . . Proto ID Catalog 1 | . . . 1 . Fabricator Hacks . | . . . . . Repair Station Hacks 2 | . 2 . . . Scan Component 1 | . 1 . . . Repair 1 | . 1 . . . Recycling Unit Hacks . | . . . . . Scanalyzer . | . . . . . Garrison Access Hacks . | . . . . . Unauthorized Hacks . | . . . . . Terminals . | . . . . . Fabricators . | . . . . . Repair Stations . | . . . . . Recycling Units . | . . . . . Scanalyzers . | . . . . . Garrison Access . | . . . . . Data Cores Recovered . | . . . . . Used . | . . . . . Hacking Detections 5 | . 5 . . . Full Trace Events . | . . . . . Feedback Events . | . . . . . Feedback Blocked . | . . . . . Robot Schematics Acquired . | . . . . . Robots Built . | . . . . . Authchips . | . . . . . Time . | . . . . . Total Robot Build Rating . | . . . . . Part Schematics Acquired . | . . . . . Parts Built . | . . . . . Authchips . | . . . . . Time . | . . . . . Total Part Build Rating . | . . . . . Part Studies Acquired . | . . . . . Parts Repaired 1 | . 1 . . . Time 26 | . 26 . . . Parts Recycled . | . . . . . Recycled Matter . | . . . . . Retrieved Matter . | . . . . . Retrieved Components . | . . . . . Parts Scanalyzed . | . . . . . Part Schematics Acquired . | . . . . . Parts Damaged . | . . . . . Bothacking | -11 -10 -10 -10 -9 ------------ Run | Yrd Mat Min Exi Min Used RIF Installer . | . . . . . Robots Hacked . | . . . . . Non-combat . | . . . . . Combat . | . . . . . Robot Hacks Applied . | . . . . . Relay Couplers Released . | . . . . . Fabnet Peak Effective % . | . . . . . Robots Rewired . | . . . . . Allies Hacked . | . . . . . Hacks Repelled . | . . . . . Allies | -11 -10 -10 -10 -9 -------- Run | Yrd Mat Min Exi Min Total Allies . | . . . . . Largest Group . | . . . . . Highest-Rated Group . | . . . . . Highest-Rated Ally . | . . . . . Total Orders . | . . . . . Ally Attacks . | . . . . . Total Damage . | . . . . . Kills . | . . . . . Allies Corrupted . | . . . . . Allies Melted . | . . . . . Intel | -11 -10 -10 -10 -9 ------- Run | Yrd Mat Min Exi Min Active Infowar (turns) 276 | 25 251 . . . Seismic 276 | 25 251 . . . Robot Analysis Total 1 | . 1 . . . Derelict Logs Recovered 2 | . . 1 . 1 Drone Launches . | . . . . . Drone Recoveries . | . . . . . Exploration | -11 -10 -10 -10 -9 ------------- Run | Yrd Mat Min Exi Min Turns Passed 1971 | 114 609 560 369 319 Spaces Moved 1240 | 68 308 372 305 187 Core 7 | 6 . 1 . . Treads 496 | 46 308 142 . . Legs 737 | 16 . 229 305 187 Wheels . | . . . . . Hover . | . . . . . Flight . | . . . . . Fastest Speed 50 | 50 160 120 120 120 Average Speed 136 | 140 160 135 120 124 Slowest Speed 300 | 160 160 300 120 190 Overloaded Moves . | . . . . . Propulsion Burnouts . | . . . . . Robots Hopped . | . . . . . Potential Cave-ins . | . . . . . Cave-ins Triggered . | . . . . . Exploration Rate (%) 45 | 3 48 66 63 47 Regions Visited 4 Branch Regions 3 Pre-discovered Areas 1 | . . . . 1 Known Exits Taken 3 | . 1 1 1 . Unknown Exits Taken 1 | 1 . . . . Scrap Searched 3 | . . 2 . 1 Spaces Dug . | . . . . . Terrain Destroyed 13 | . . . . 13 Melee . | . . . . . Projectile . | . . . . . AOE 13 | . . . . 13 Terrain Rammed . | . . . . . Walls Destroyed . | . . . . . Machines Disabled . | . . . . . Actions | -11 -10 -10 -10 -9 --------- Run | Yrd Mat Min Exi Min Total 1422 | 80 385 397 310 250 Wait 46 | . 35 . . 11 Move 1236 | 67 307 371 304 187 Hop . | . . . . . Pick Up 11 | . 8 1 1 1 Fast Attach 17 | 9 5 3 . . Attach 5 | . . . 1 4 Detach 2 | 2 . . . . Swap 1 | . 1 . . . Drop 15 | . 5 3 4 3 Fire 60 | 2 24 18 . 16 Melee . | . . . . . Ram . | . . . . . Kick 28 | . . . . 28 Crush 1 | . . 1 . . Escape Stasis . | . . . . . Rewire . | . . . . . Trap . | . . . . . Miscellaneous . | . . . . . Route ------- -11/Scrapyard -10/Materials (discovered 2 exits: *Mat / *Min) -10/Mines (discovered 3 exits: *Mat x2 / *Exi) -10/Exiles -9/Mines History --------- Turn | Location | Event 3 | -11/Scrapyard | Discovered new exit (range 15) 115 | -11/Scrapyard | Entered Materials 312 | -10/Materials | Build established: Mutant 326 | -10/Materials | Discovered new exit (range 13) 366 | -10/Materials | Repaired Seismic Detector 393 | -10/Materials | Identified exit to Mines 460 | -10/Materials | Discovered new exit (range 10) 473 | -10/Materials | Identified exit to Materials 724 | -10/Materials | Entered Mines 787 | -10/Mines | Found a damaged Exp. Sensor Array with a note attached 790 | -10/Mines | Found Prototype Device 821 | -10/Mines | Deemed a non-threat by the Exiles lab entrance 823 | -10/Mines | Discovered new exit (range 5) 828 | -10/Mines | Identified exit to Exiles 1089 | -10/Mines | Discovered exit to Materials (range 15) 1284 | -10/Mines | Entered Exiles 1314 | -10/Exiles | Met 8R-AWN 1343 | -10/Exiles | Met EX-HEX 1391 | -10/Exiles | Met EX-BIN 1431 | -10/Exiles | Aligned with FarCom system 1432 | -10/Exiles | Given EX-Vault access code 1508 | -10/Exiles | Opened EX-Vault 1522 | -10/Exiles | Found Flying Fortress v7 1558 | -10/Exiles | Warned to stay clear of 0b10 Research branches 1561 | -10/Exiles | Exiles lab attacked by MAIN.C 1639 | -10/Exiles | Discovered new exit (range 14) 1652 | -10/Exiles | Identified exit to Mines 1653 | -10/Exiles | Left Exiles lab with Flying Fortress v7 1653 | -10/Exiles | Entered Mines 1665 | -9/Mines | Received a Rocket Launcher from a helpful Derelict 1826 | -9/Mines | Assembled infested the area 1888 | -9/Mines | Core integrity fell below 50% 1901 | -9/Mines | Identified Exp. Sensor Array 1927 | -9/Mines | Lost 3 parts (1p1u1w) 1949 | -9/Mines | Core integrity fell below 20% 1959 | -9/Mines | Learned Materials trap positions 1960 | -9/Mines | Learned location of Storage (-9) 1972 | -9/Mines | Destroyed by as-83964 with Assembled Blade Last Messages --------------- Kicked as-79738 out of the way. Lgt. Assault Rifle destroyed. Aluminum Leg destroyed. as-79738 destroyed. Acquired derelict log, extracted data. Data stored: Materials trap records. A derelict emerges from the shadows: "Are any of them following you? I'm here trying to lose some heat after our second raid on Storage failed. Whatever you do stay away from that place, they've tightened security following our previous successful raids." World map updated: -9/Storage. E6-5H6(g): "We scattered so the Unaware couldn't effectively use their advantage in numbers, and I suggest you do the same." E6-5H6(g) slips back into the shadows. Ion Engine destroyed. Rocket Launcher destroyed. Kicked as-83964. Map ----- +----------------------------------------------------+ | ?????????#### ### ## ### | | ?????????# ###?# ### ##### ##?? | | ????????# ##???# #?# #???# ##???? | | ????????# ### ##????# #?## ##??? ##????? | | ????????## ????# ##?????# #??###???? #??????? | | ?????????#??##### #??????# #???????? ??????? | | ????????????#%%%%%#??????#*#???????? ??????? | | ????????????#%%####??????#=#???????? ??????? | | ??????????###%% #????????#=#???????? ??????? | | ??????????# = #?###????#%#???????? ##?????? | | ??????????# ## ###??#|#????????###???????? | | ??????????? # #??#!#??????????????????? | | ???????????# ####!###????????????????? | | ???????????# $ | ??????????????? | | ????????????#" !%!??????????????? | | ????????????# ##########??????????????????? | | ????????????## ##???????????????????????????? | | ?????????????## ##????????????????????????????? | | ??????????????# #????###??????????????????????? | | ??????????????# #???## ##?????????????????????? | | ???????????# ## ###?# #?????????????????????? | | ???????????# #?# #?????????????????????? | | ???????????###### #?# #?????????????????????? | | ????????????????# ### #??????????????????????? | | ????????????????# aa #??????????????????????? | | ????????????????# a @#??????????????????????? | | ????????????????#### a #??????????????????????? | | ???????????????????## ##??????????????????????? | | ????????????????????###???????????????????????? | | ??????????????????????????????????????????????? | | ????????????????????????????????????Y?????????? | | ??????????????????????????????????????????????? | | ??????????????????????????????????????????????? | | ??????????????????????????????????????????????? | | ??????????????????????????????????????????????? | | ????????????????????????????????????Y?????????? | | ??????????????????????????????????????????????? | | ??????????????????????????????????????????????? | | ??????????????????????????????????????????????? | | ??????????????????????????????????????????????? | | ??????????????????????????????????????????????? | | | | | | | | | | | | | | | | | | | +----------------------------------------------------+ Best States ------------- Heat Dissipation 25 Energy Generation 14 Energy Capacity 250 Matter Stores 300 Matter Capacity 300 Sight Range 16 Terrain Scan Density 10 Resistance: KI 20 Resistance: TH 20 Resistance: EX 20 Resistance: EM 20 Resistance: I 20 Resistance: S 20 Resistance: P 20 Evasion (%) 55 Recoil Reduction 2 Offensive Hacking 10 Item Schematics ----------------- None Robot Schematics ------------------ None Fabricated ------------ Nothing Repaired ---------- Seismic Detector | 60% | -10/Materials Studied --------- None Alien Tech Used ----------------- None Achievements -------------- Sixth Sense Challenges ------------ None Game ------ Seed VampiricResetMicroactuators Manual? 0 Play Time 00:25:09 Cumulative 11.4 hours Start 2026.07.05 @ 14:43:16 End 2026.07.05 @ 15:08:09 Sessions 1 Manual Loads 0 Difficulty Adventurer Special Mode None Game No. 9 Rogue 0 Adventurer 9 Explorer 0 Win Type - Total 0 Types 0/0/0/0/0/0/0/0/0/0 Lore% 11 Gallery% 17 Achievement% 15 Wizard Run 0 Options --------- Layout 1 ASCII 0 Keyboard 0 Movement Mouse Keybinds 0 Fullscreen 1 Font 24/Smallcaps Map View 50x35 Zoom Use 0% Tactical HUD 0 Map Filters NONE Filters NONE Steam 1 RUN: fe51ba66-33a2-4722-84c6-ad383d485b32